[Event "Live Chess"]
[Site "Chess.com"]
[Date "2010.12.13"]
[Round "-"]
[White "Jonani"]
[Black "hipposcottimus"]
[Result "0-1"]
[CurrentPosition "8/1p5r/p7/3P4/2k5/8/4K3/8 w - -"]
[Timezone "UTC"]
[ECO "A00"]
[ECOUrl "https://www.chess.com/openings/Vant-Kruijs-Opening-1...e5"]
[UTCDate "2010.12.13"]
[UTCTime "02:25:35"]
[WhiteElo "1478"]
[BlackElo "1615"]
[TimeControl "60"]
[Termination "hipposcottimus won on time"]
[StartTime "02:25:35"]
[EndDate "2010.12.13"]
[EndTime "02:27:51"]
[Link "https://www.chess.com/game/live/76741748"]

1. e3 {[%clk 0:01:00]} 1... e5 {[%clk 0:01:00]} 2. Be2 {[%clk 0:01:00]} 2... e4 {[%clk 0:00:59.5]} 3. b3 {[%clk 0:01:00]} 3... d5 {[%clk 0:00:58.9]} 4. Bb2 {[%clk 0:01:00]} 4... c5 {[%clk 0:00:58.1]} 5. Bg4 {[%clk 0:01:00]} 5... f6 {[%clk 0:00:57.7]} 6. Bxc8 {[%clk 0:00:58.9]} 6... Qxc8 {[%clk 0:00:56.6]} 7. Qh5+ {[%clk 0:00:57.1]} 7... g6 {[%clk 0:00:54.5]} 8. Qxd5 {[%clk 0:00:55.7]} 8... Ne7 {[%clk 0:00:54.1]} 9. Qxe4 {[%clk 0:00:53.5]} 9... Nc6 {[%clk 0:00:53.3]} 10. Qf3 {[%clk 0:00:52.3]} 10... Qf5 {[%clk 0:00:51.6]} 11. Qxf5 {[%clk 0:00:51.2]} 11... Nxf5 {[%clk 0:00:51.3]} 12. Bxf6 {[%clk 0:00:49.2]} 12... Rg8 {[%clk 0:00:50.2]} 13. Bb2 {[%clk 0:00:47.8]} 13... Be7 {[%clk 0:00:49.8]} 14. Nc3 {[%clk 0:00:45.7]} 14... O-O-O {[%clk 0:00:49.4]} 15. Nb5 {[%clk 0:00:44.4]} 15... Bg5 {[%clk 0:00:48]} 16. Nf3 {[%clk 0:00:42.5]} 16... Kb8 {[%clk 0:00:47.1]} 17. d3 {[%clk 0:00:40.9]} 17... Bh6 {[%clk 0:00:45.5]} 18. e4 {[%clk 0:00:37.8]} 18... Nh4 {[%clk 0:00:43.3]} 19. Nxh4 {[%clk 0:00:36.6]} 19... g5 {[%clk 0:00:42.5]} 20. Nf3 {[%clk 0:00:34.9]} 20... Bg7 {[%clk 0:00:42.2]} 21. Nxg5 {[%clk 0:00:33.6]} 21... Bxb2 {[%clk 0:00:40.4]} 22. Rb1 {[%clk 0:00:31.6]} 22... Bc3+ {[%clk 0:00:39]} 23. Ke2 {[%clk 0:00:29.1]} 23... Bd4 {[%clk 0:00:37.7]} 24. Nxd4 {[%clk 0:00:28]} 24... Nxd4+ {[%clk 0:00:37.4]} 25. Kd2 {[%clk 0:00:25.3]} 25... Rxg5 {[%clk 0:00:35.4]} 26. c3 {[%clk 0:00:23.6]} 26... Ne6 {[%clk 0:00:31.8]} 27. c4 {[%clk 0:00:23]} 27... Rxg2 {[%clk 0:00:30.9]} 28. Rhg1 {[%clk 0:00:20.8]} 28... Rxf2+ {[%clk 0:00:30]} 29. Ke3 {[%clk 0:00:18]} 29... Rxa2 {[%clk 0:00:28.2]} 30. Rgd1 {[%clk 0:00:16.8]} 30... Nd4 {[%clk 0:00:26.4]} 31. Rd2 {[%clk 0:00:15.5]} 31... Ra3 {[%clk 0:00:25.1]} 32. b4 {[%clk 0:00:13.1]} 32... cxb4 {[%clk 0:00:18.7]} 33. Rxb4 {[%clk 0:00:12.2]} 33... Nb3 {[%clk 0:00:17.8]} 34. Rb5 {[%clk 0:00:10.4]} 34... a6 {[%clk 0:00:15.4]} 35. Rd5 {[%clk 0:00:09.4]} 35... Rxd5 {[%clk 0:00:13.8]} 36. exd5 {[%clk 0:00:08.7]} 36... Nc5 {[%clk 0:00:13.5]} 37. Rf2 {[%clk 0:00:06.6]} 37... Rxd3+ {[%clk 0:00:13.2]} 38. Ke2 {[%clk 0:00:04.8]} 38... Kc7 {[%clk 0:00:12.9]} 39. Rf7+ {[%clk 0:00:03.4]} 39... Kd6 {[%clk 0:00:12.6]} 40. Rxh7 {[%clk 0:00:03.4]} 40... Ke5 {[%clk 0:00:11.8]} 41. Rc7 {[%clk 0:00:02.4]} 41... Kd4 {[%clk 0:00:11.4]} 42. Rxc5 {[%clk 0:00:01.5]} 42... Kxc5 {[%clk 0:00:11.1]} 43. h4 {[%clk 0:00:00.5]} 43... Kxc4 {[%clk 0:00:09.9]} 44. h5 {[%clk 0:00:00.5]} 44... Rd4 {[%clk 0:00:09]} 45. h6 {[%clk 0:00:00.5]} 45... Rh4 {[%clk 0:00:08.5]} 46. h7 {[%clk 0:00:00.5]} 46... Rxh7 {[%clk 0:00:07.2]} 0-1

[Event "Live Chess"]
[Site "Chess.com"]
[Date "2010.12.13"]
[Round "-"]
[White "hipposcottimus"]
[Black "CR_Gixxer"]
[Result "0-1"]
[CurrentPosition "3r2k1/1q3p1p/3Kp1p1/2p5/3b1P2/6P1/7P/8 w - -"]
[Timezone "UTC"]
[ECO "A40"]
[ECOUrl "https://www.chess.com/openings/Modern-Defense-with-1-d4-2.c4-Bg7-3.e4"]
[UTCDate "2010.12.13"]
[UTCTime "02:22:28"]
[WhiteElo "1610"]
[BlackElo "1470"]
[TimeControl "60"]
[Termination "CR_Gixxer won by checkmate"]
[StartTime "02:22:28"]
[EndDate "2010.12.13"]
[EndTime "02:24:29"]
[Link "https://www.chess.com/game/live/76741022"]

1. e4 {[%clk 0:01:00]} 1... g6 {[%clk 0:01:00]} 2. d4 {[%clk 0:00:57.3]} 2... Bg7 {[%clk 0:01:00]} 3. c4 {[%clk 0:00:57]} 3... e6 {[%clk 0:01:00]} 4. Nc3 {[%clk 0:00:56.6]} 4... Ne7 {[%clk 0:01:00]} 5. Nf3 {[%clk 0:00:52.2]} 5... b6 {[%clk 0:00:59.3]} 6. Bd3 {[%clk 0:00:51.5]} 6... Bb7 {[%clk 0:00:59.3]} 7. O-O {[%clk 0:00:51.2]} 7... Nbc6 {[%clk 0:00:58.7]} 8. e5 {[%clk 0:00:50.5]} 8... Nb4 {[%clk 0:00:57.5]} 9. Bc2 {[%clk 0:00:49]} 9... Nxc2 {[%clk 0:00:56.6]} 10. Qxc2 {[%clk 0:00:48.7]} 10... Nc6 {[%clk 0:00:55.8]} 11. Qd3 {[%clk 0:00:48.1]} 11... Nb4 {[%clk 0:00:54.2]} 12. Qe3 {[%clk 0:00:46]} 12... Nc2 {[%clk 0:00:52.2]} 13. Qg5 {[%clk 0:00:43.2]} 13... Qxg5 {[%clk 0:00:48.9]} 14. Nxg5 {[%clk 0:00:42.9]} 14... Nxa1 {[%clk 0:00:48.2]} 15. Bf4 {[%clk 0:00:42]} 15... Nc2 {[%clk 0:00:47.6]} 16. b3 {[%clk 0:00:38.4]} 16... Nxd4 {[%clk 0:00:46.6]} 17. Bg3 {[%clk 0:00:38.1]} 17... Nf5 {[%clk 0:00:45.2]} 18. Nf3 {[%clk 0:00:37.1]} 18... Nxg3 {[%clk 0:00:44.2]} 19. fxg3 {[%clk 0:00:36.2]} 19... Bxf3 {[%clk 0:00:43.1]} 20. gxf3 {[%clk 0:00:34.1]} 20... Bxe5 {[%clk 0:00:42.5]} 21. f4 {[%clk 0:00:33.8]} 21... Bxc3 {[%clk 0:00:41.7]} 22. Rc1 {[%clk 0:00:32.4]} 22... Bd4+ {[%clk 0:00:39.4]} 23. Kf1 {[%clk 0:00:30.8]} 23... c5 {[%clk 0:00:38.9]} 24. Rd1 {[%clk 0:00:30.6]} 24... O-O {[%clk 0:00:38.4]} 25. a3 {[%clk 0:00:30.3]} 25... a6 {[%clk 0:00:36.8]} 26. b4 {[%clk 0:00:30.1]} 26... d6 {[%clk 0:00:35.1]} 27. b5 {[%clk 0:00:28.9]} 27... axb5 {[%clk 0:00:33.6]} 28. a4 {[%clk 0:00:28.6]} 28... bxc4 {[%clk 0:00:31.7]} 29. Rc1 {[%clk 0:00:26.2]} 29... Rxa4 {[%clk 0:00:31.1]} 30. Rb1 {[%clk 0:00:24.9]} 30... c3 {[%clk 0:00:30.5]} 31. Rxb6 {[%clk 0:00:24]} 31... Ra1+ {[%clk 0:00:29.3]} 32. Ke2 {[%clk 0:00:22.6]} 32... c2 {[%clk 0:00:28.4]} 33. Kd2 {[%clk 0:00:22.1]} 33... c1=Q+ {[%clk 0:00:27.3]} 34. Kd3 {[%clk 0:00:21.3]} 34... Qd1+ {[%clk 0:00:24.7]} 35. Kc4 {[%clk 0:00:17.1]} 35... Qc2+ {[%clk 0:00:22.2]} 36. Kb5 {[%clk 0:00:16]} 36... Rb1+ {[%clk 0:00:21.1]} 37. Kc6 {[%clk 0:00:15.6]} 37... Rc8+ {[%clk 0:00:19.4]} 38. Kb7 {[%clk 0:00:13.1]} 38... Rxb6+ {[%clk 0:00:18.6]} 39. Kxb6 {[%clk 0:00:12.8]} 39... Rb8+ {[%clk 0:00:13.9]} 40. Kc7 {[%clk 0:00:11.7]} 40... Qb3 {[%clk 0:00:13.3]} 41. Kd7 {[%clk 0:00:10.3]} 41... Qb7+ {[%clk 0:00:12.5]} 42. Kxd6 {[%clk 0:00:10]} 42... Rd8# {[%clk 0:00:10.2]} 0-1

[Event "Live Chess"]
[Site "Chess.com"]
[Date "2010.12.13"]
[Round "-"]
[White "CR_Gixxer"]
[Black "hipposcottimus"]
[Result "0-1"]
[CurrentPosition "8/8/3N3p/3p4/P6k/4PPRP/1B4PK/R7 w - -"]
[Timezone "UTC"]
[ECO "D02"]
[ECOUrl "https://www.chess.com/openings/Queens-Pawn-Opening-Zukertort-Variation-2...c6"]
[UTCDate "2010.12.13"]
[UTCTime "02:19:42"]
[WhiteElo "1458"]
[BlackElo "1620"]
[TimeControl "60"]
[Termination "hipposcottimus won on time"]
[StartTime "02:19:42"]
[EndDate "2010.12.13"]
[EndTime "02:21:45"]
[Link "https://www.chess.com/game/live/76740495"]

1. d4 {[%clk 0:01:00]} 1... d5 {[%clk 0:01:00]} 2. Nf3 {[%clk 0:01:00]} 2... c6 {[%clk 0:00:59.7]} 3. Nbd2 {[%clk 0:01:00]} 3... Nd7 {[%clk 0:00:59.4]} 4. c3 {[%clk 0:00:59.5]} 4... e6 {[%clk 0:00:59.2]} 5. e3 {[%clk 0:00:58.9]} 5... Ngf6 {[%clk 0:00:59]} 6. h3 {[%clk 0:00:58]} 6... Bd6 {[%clk 0:00:58.3]} 7. Bd3 {[%clk 0:00:56.8]} 7... e5 {[%clk 0:00:58]} 8. dxe5 {[%clk 0:00:54.8]} 8... Bxe5 {[%clk 0:00:57.7]} 9. Nxe5 {[%clk 0:00:54.2]} 9... Nxe5 {[%clk 0:00:57.4]} 10. Bb1 {[%clk 0:00:53.4]} 10... O-O {[%clk 0:00:55.9]} 11. Nf3 {[%clk 0:00:52.8]} 11... Ned7 {[%clk 0:00:53.8]} 12. O-O {[%clk 0:00:51]} 12... Nb6 {[%clk 0:00:53.5]} 13. Re1 {[%clk 0:00:50.3]} 13... Nfd7 {[%clk 0:00:53.1]} 14. a4 {[%clk 0:00:48.9]} 14... f5 {[%clk 0:00:52.8]} 15. b3 {[%clk 0:00:48.1]} 15... Rb8 {[%clk 0:00:50.4]} 16. Ba3 {[%clk 0:00:46]} 16... Re8 {[%clk 0:00:49]} 17. c4 {[%clk 0:00:43.4]} 17... Nc5 {[%clk 0:00:47.9]} 18. b4 {[%clk 0:00:41.7]} 18... Ne4 {[%clk 0:00:45.2]} 19. c5 {[%clk 0:00:40.2]} 19... Nd7 {[%clk 0:00:42.3]} 20. Bb2 {[%clk 0:00:37.8]} 20... b6 {[%clk 0:00:41.6]} 21. Qd4 {[%clk 0:00:36.1]} 21... Re7 {[%clk 0:00:39]} 22. cxb6 {[%clk 0:00:34.1]} 22... axb6 {[%clk 0:00:37.6]} 23. Bxe4 {[%clk 0:00:28.7]} 23... Bb7 {[%clk 0:00:37]} 24. Bxf5 {[%clk 0:00:26.5]} 24... c5 {[%clk 0:00:36.5]} 25. bxc5 {[%clk 0:00:25]} 25... bxc5 {[%clk 0:00:35.2]} 26. Qd2 {[%clk 0:00:21.1]} 26... Rc8 {[%clk 0:00:34.9]} 27. Bc2 {[%clk 0:00:17.9]} 27... Rf7 {[%clk 0:00:34.5]} 28. Qd3 {[%clk 0:00:16.8]} 28... Nf6 {[%clk 0:00:32.8]} 29. Ne5 {[%clk 0:00:14.5]} 29... Ne4 {[%clk 0:00:32]} 30. f3 {[%clk 0:00:12.5]} 30... c4 {[%clk 0:00:30.4]} 31. Nxf7 {[%clk 0:00:11]} 31... cxd3 {[%clk 0:00:27.4]} 32. Nxd8 {[%clk 0:00:10.2]} 32... dxc2 {[%clk 0:00:25.7]} 33. Nxb7 {[%clk 0:00:09.2]} 33... c1=Q {[%clk 0:00:23]} 34. Rexc1 {[%clk 0:00:08.1]} 34... Ng3 {[%clk 0:00:22.7]} 35. Rxc8+ {[%clk 0:00:06.1]} 35... Kf7 {[%clk 0:00:22.5]} 36. Rc7+ {[%clk 0:00:04.4]} 36... Kg6 {[%clk 0:00:22.2]} 37. Rxg7+ {[%clk 0:00:03.5]} 37... Kh6 {[%clk 0:00:19.8]} 38. Rxg3 {[%clk 0:00:02.4]} 38... Kh5 {[%clk 0:00:18.2]} 39. Nd6 {[%clk 0:00:01.5]} 39... h6 {[%clk 0:00:17.8]} 40. Kh2 {[%clk 0:00:00.3]} 40... Kh4 {[%clk 0:00:17.4]} 0-1

[Event "Live Chess"]
[Site "Chess.com"]
[Date "2010.12.13"]
[Round "-"]
[White "hipposcottimus"]
[Black "omarmuyot01"]
[Result "1-0"]
[CurrentPosition "3rk2r/pp2Qppp/6q1/3p4/8/6NP/PP3PP1/R3R1K1 b k -"]
[Timezone "UTC"]
[ECO "B01"]
[ECOUrl "https://www.chess.com/openings/Scandinavian-Defense-Mieses-Kotrc-Variation-3.Nc3"]
[UTCDate "2010.12.13"]
[UTCTime "02:17:22"]
[WhiteElo "1615"]
[BlackElo "1657"]
[TimeControl "60"]
[Termination "hipposcottimus won by checkmate"]
[StartTime "02:17:22"]
[EndDate "2010.12.13"]
[EndTime "02:19:03"]
[Link "https://www.chess.com/game/live/76739968"]

1. e4 {[%clk 0:01:00]} 1... d5 {[%clk 0:01:00]} 2. exd5 {[%clk 0:00:58.4]} 2... Qxd5 {[%clk 0:00:59.3]} 3. Nc3 {[%clk 0:00:58.1]} 3... Qe6+ {[%clk 0:00:58.7]} 4. Be2 {[%clk 0:00:57.8]} 4... Qg6 {[%clk 0:00:57.7]} 5. d4 {[%clk 0:00:57.5]} 5... Bf5 {[%clk 0:00:56.2]} 6. Bf3 {[%clk 0:00:56.5]} 6... Bxc2 {[%clk 0:00:54.3]} 7. Qe2 {[%clk 0:00:54.1]} 7... Nc6 {[%clk 0:00:51.2]} 8. d5 {[%clk 0:00:52.3]} 8... Nd4 {[%clk 0:00:48.9]} 9. Qe3 {[%clk 0:00:46.2]} 9... c5 {[%clk 0:00:41.7]} 10. Nge2 {[%clk 0:00:45.4]} 10... Nf6 {[%clk 0:00:38.8]} 11. Nxd4 {[%clk 0:00:44]} 11... cxd4 {[%clk 0:00:36.5]} 12. Qxd4 {[%clk 0:00:43.7]} 12... Rd8 {[%clk 0:00:32.5]} 13. Be3 {[%clk 0:00:41.2]} 13... e6 {[%clk 0:00:31.3]} 14. Qd2 {[%clk 0:00:36]} 14... exd5 {[%clk 0:00:29.6]} 15. O-O {[%clk 0:00:26.9]} 15... Bd3 {[%clk 0:00:28.1]} 16. Be2 {[%clk 0:00:24.1]} 16... Bxe2 {[%clk 0:00:25.9]} 17. Nxe2 {[%clk 0:00:23.6]} 17... Ng4 {[%clk 0:00:24.7]} 18. Ng3 {[%clk 0:00:22.1]} 18... Qh5 {[%clk 0:00:22.6]} 19. h3 {[%clk 0:00:18.3]} 19... Nxe3 {[%clk 0:00:20.9]} 20. Qxe3+ {[%clk 0:00:17.3]} 20... Be7 {[%clk 0:00:19.6]} 21. Rfe1 {[%clk 0:00:16.7]} 21... Qg6 {[%clk 0:00:15.5]} 22. Qxe7# {[%clk 0:00:15]} 1-0

[Event "Live Chess"]
[Site "Chess.com"]
[Date "2010.12.13"]
[Round "-"]
[White "hipposcottimus"]
[Black "chessplayer09"]
[Result "0-1"]
[CurrentPosition "8/8/5pkp/2R2b2/2P5/1P6/P2K3P/8 w - -"]
[Timezone "UTC"]
[ECO "B20"]
[ECOUrl "https://www.chess.com/openings/Sicilian-Defense"]
[UTCDate "2010.12.13"]
[UTCTime "02:13:29"]
[WhiteElo "1606"]
[BlackElo "1638"]
[TimeControl "60"]
[Termination "chessplayer09 won on time"]
[StartTime "02:13:29"]
[EndDate "2010.12.13"]
[EndTime "02:15:39"]
[Link "https://www.chess.com/game/live/76739167"]

1. e4 {[%clk 0:01:00]} 1... c5 {[%clk 0:01:00]} 2. Bb5 {[%clk 0:00:57.5]} 2... Nc6 {[%clk 0:00:58.4]} 3. Bxc6 {[%clk 0:00:56.6]} 3... bxc6 {[%clk 0:00:57.6]} 4. c4 {[%clk 0:00:55.6]} 4... d5 {[%clk 0:00:57.6]} 5. d3 {[%clk 0:00:54.5]} 5... d4 {[%clk 0:00:56.7]} 6. Nd2 {[%clk 0:00:51.8]} 6... Nf6 {[%clk 0:00:56.7]} 7. Ndf3 {[%clk 0:00:51.3]} 7... g6 {[%clk 0:00:56.3]} 8. Nh3 {[%clk 0:00:50.4]} 8... Bg7 {[%clk 0:00:55.9]} 9. Nhg5 {[%clk 0:00:49.3]} 9... O-O {[%clk 0:00:55.2]} 10. e5 {[%clk 0:00:48.9]} 10... Nd7 {[%clk 0:00:53.7]} 11. O-O {[%clk 0:00:45]} 11... Bxe5 {[%clk 0:00:52.9]} 12. Ne4 {[%clk 0:00:43.1]} 12... Bg7 {[%clk 0:00:50.5]} 13. Nfg5 {[%clk 0:00:40.5]} 13... Bb7 {[%clk 0:00:49.5]} 14. Qg4 {[%clk 0:00:39.7]} 14... f6 {[%clk 0:00:48.4]} 15. Qh4 {[%clk 0:00:37.4]} 15... h6 {[%clk 0:00:47.5]} 16. Ne6 {[%clk 0:00:32.7]} 16... g5 {[%clk 0:00:44.6]} 17. Nxd8 {[%clk 0:00:31.7]} 17... gxh4 {[%clk 0:00:43.4]} 18. Ne6 {[%clk 0:00:31.1]} 18... Rfe8 {[%clk 0:00:41.8]} 19. Nxg7 {[%clk 0:00:30.4]} 19... Kxg7 {[%clk 0:00:40.6]} 20. f4 {[%clk 0:00:28.2]} 20... Ne5 {[%clk 0:00:40.1]} 21. Nf2 {[%clk 0:00:26.9]} 21... Nd7 {[%clk 0:00:35]} 22. f5 {[%clk 0:00:26.6]} 22... e6 {[%clk 0:00:33.6]} 23. Nh3 {[%clk 0:00:25.4]} 23... exf5 {[%clk 0:00:32.8]} 24. Rxf5 {[%clk 0:00:25.1]} 24... Kg6 {[%clk 0:00:32.5]} 25. Rf2 {[%clk 0:00:18.6]} 25... Re1+ {[%clk 0:00:31.5]} 26. Rf1 {[%clk 0:00:17]} 26... Rxf1+ {[%clk 0:00:31]} 27. Kxf1 {[%clk 0:00:16.8]} 27... Ne5 {[%clk 0:00:31]} 28. Kg1 {[%clk 0:00:16.5]} 28... Nxd3 {[%clk 0:00:30.7]} 29. Nf4+ {[%clk 0:00:15]} 29... Nxf4 {[%clk 0:00:28.9]} 30. Bxf4 {[%clk 0:00:14.8]} 30... Kf5 {[%clk 0:00:28.9]} 31. g3 {[%clk 0:00:14.4]} 31... d3 {[%clk 0:00:28.5]} 32. Rf1 {[%clk 0:00:11.7]} 32... Ba6 {[%clk 0:00:28.1]} 33. Bd2+ {[%clk 0:00:10.7]} 33... Kg4 {[%clk 0:00:26.9]} 34. gxh4 {[%clk 0:00:10.5]} 34... Kxh4 {[%clk 0:00:26.1]} 35. Rf4+ {[%clk 0:00:09.8]} 35... Kh5 {[%clk 0:00:25.8]} 36. Rf3 {[%clk 0:00:08.7]} 36... Kg6 {[%clk 0:00:25.8]} 37. b3 {[%clk 0:00:08.1]} 37... Kf7 {[%clk 0:00:25.8]} 38. Rxd3 {[%clk 0:00:07.5]} 38... Re8 {[%clk 0:00:23.7]} 39. Rd7+ {[%clk 0:00:05.8]} 39... Kf8 {[%clk 0:00:22.4]} 40. Rxa7 {[%clk 0:00:05.5]} 40... Bc8 {[%clk 0:00:20]} 41. Rc7 {[%clk 0:00:05.2]} 41... Bh3 {[%clk 0:00:18.8]} 42. Rxc6 {[%clk 0:00:04.9]} 42... Kf7 {[%clk 0:00:16.4]} 43. Kf2 {[%clk 0:00:04.3]} 43... Rg8 {[%clk 0:00:16]} 44. Ke3 {[%clk 0:00:02.5]} 44... Rg2 {[%clk 0:00:16]} 45. Rc7+ {[%clk 0:00:02.3]} 45... Kg6 {[%clk 0:00:14.6]} 46. Rxc5 {[%clk 0:00:02]} 46... Rxd2 {[%clk 0:00:13.2]} 47. Kxd2 {[%clk 0:00:00.7]} 47... Bf5 {[%clk 0:00:13.2]} 0-1

[Event "Live Chess"]
[Site "Chess.com"]
[Date "2010.12.13"]
[Round "-"]
[White "hipposcottimus"]
[Black "knightlord"]
[Result "1-0"]
[CurrentPosition "6k1/pp3p1p/6p1/2n5/2P3P1/N4K2/Pn5P/8 b - -"]
[Timezone "UTC"]
[ECO "B01"]
[ECOUrl "https://www.chess.com/openings/Scandinavian-Defense-Mieses-Kotrc-Variation-3.Nc3"]
[UTCDate "2010.12.13"]
[UTCTime "02:11:02"]
[WhiteElo "1606"]
[BlackElo "1438"]
[TimeControl "60"]
[Termination "hipposcottimus won on time"]
[StartTime "02:11:02"]
[EndDate "2010.12.13"]
[EndTime "02:12:54"]
[Link "https://www.chess.com/game/live/76738707"]

1. e4 {[%clk 0:01:00]} 1... d5 {[%clk 0:01:00]} 2. exd5 {[%clk 0:00:58.9]} 2... Qxd5 {[%clk 0:00:59.3]} 3. Nc3 {[%clk 0:00:58.7]} 3... Qe6+ {[%clk 0:00:57.7]} 4. Be2 {[%clk 0:00:58.3]} 4... Bd7 {[%clk 0:00:56.2]} 5. d4 {[%clk 0:00:58]} 5... Bb5 {[%clk 0:00:55.3]} 6. d5 {[%clk 0:00:57.6]} 6... Qe5 {[%clk 0:00:50.7]} 7. Be3 {[%clk 0:00:53.6]} 7... Bxe2 {[%clk 0:00:48.6]} 8. Ngxe2 {[%clk 0:00:53.2]} 8... e6 {[%clk 0:00:45.8]} 9. O-O {[%clk 0:00:52.7]} 9... exd5 {[%clk 0:00:44.9]} 10. Nxd5 {[%clk 0:00:50.7]} 10... Na6 {[%clk 0:00:42.8]} 11. c3 {[%clk 0:00:49.3]} 11... c6 {[%clk 0:00:40.8]} 12. Bd4 {[%clk 0:00:48.9]} 12... Qd6 {[%clk 0:00:37.9]} 13. Ne3 {[%clk 0:00:47]} 13... c5 {[%clk 0:00:35.8]} 14. Re1 {[%clk 0:00:46.7]} 14... cxd4 {[%clk 0:00:34.9]} 15. Nxd4 {[%clk 0:00:46]} 15... Nc5 {[%clk 0:00:33.1]} 16. Nc4+ {[%clk 0:00:45.3]} 16... Qe7 {[%clk 0:00:25.4]} 17. Rxe7+ {[%clk 0:00:44.2]} 17... Bxe7 {[%clk 0:00:25.1]} 18. Qe2 {[%clk 0:00:43.4]} 18... Nf6 {[%clk 0:00:24.6]} 19. Re1 {[%clk 0:00:42.9]} 19... O-O {[%clk 0:00:23.8]} 20. Qxe7 {[%clk 0:00:41.9]} 20... Rfe8 {[%clk 0:00:22.3]} 21. Qxe8+ {[%clk 0:00:35.1]} 21... Rxe8 {[%clk 0:00:17.2]} 22. Rxe8+ {[%clk 0:00:34.7]} 22... Nxe8 {[%clk 0:00:16.5]} 23. f4 {[%clk 0:00:34.3]} 23... Nc7 {[%clk 0:00:15.1]} 24. g3 {[%clk 0:00:34]} 24... Nd5 {[%clk 0:00:14]} 25. Nf5 {[%clk 0:00:33.7]} 25... g6 {[%clk 0:00:12.7]} 26. Ne7+ {[%clk 0:00:33.3]} 26... Nxe7 {[%clk 0:00:11.1]} 27. g4 {[%clk 0:00:32.5]} 27... Nc6 {[%clk 0:00:09.9]} 28. Kf2 {[%clk 0:00:32.3]} 28... Na4 {[%clk 0:00:08.2]} 29. Na3 {[%clk 0:00:32]} 29... Nxb2 {[%clk 0:00:06.9]} 30. c4 {[%clk 0:00:30.7]} 30... Nd3+ {[%clk 0:00:06.1]} 31. Kf3 {[%clk 0:00:30.4]} 31... Nc5 {[%clk 0:00:05.1]} 32. Ke3 {[%clk 0:00:29.3]} 32... Ne7 {[%clk 0:00:03.9]} 33. Kf2 {[%clk 0:00:29]} 33... Nc6 {[%clk 0:00:03.3]} 34. Kg3 {[%clk 0:00:28.7]} 34... Nd4 {[%clk 0:00:02.7]} 35. Kg2 {[%clk 0:00:28.5]} 35... Ne2 {[%clk 0:00:02.1]} 36. Kh3 {[%clk 0:00:28.3]} 36... Nxf4+ {[%clk 0:00:01.4]} 37. Kh4 {[%clk 0:00:28]} 37... Nfd3 {[%clk 0:00:00.9]} 38. Kg3 {[%clk 0:00:27.7]} 38... Nb2 {[%clk 0:00:00.2]} 39. Kf3 {[%clk 0:00:27.5]} 1-0

[Event "Live Chess"]
[Site "Chess.com"]
[Date "2010.12.13"]
[Round "-"]
[White "knightlord"]
[Black "hipposcottimus"]
[Result "0-1"]
[CurrentPosition "8/1p3kpp/8/p2n4/P3b3/1P4PP/3P2qK/8 w - -"]
[Timezone "UTC"]
[ECO "C23"]
[ECOUrl "https://www.chess.com/openings/Bishops-Opening-2...Nc6"]
[UTCDate "2010.12.13"]
[UTCTime "02:08:38"]
[WhiteElo "1443"]
[BlackElo "1601"]
[TimeControl "60"]
[Termination "hipposcottimus won by checkmate"]
[StartTime "02:08:38"]
[EndDate "2010.12.13"]
[EndTime "02:10:46"]
[Link "https://www.chess.com/game/live/76738220"]

1. e4 {[%clk 0:01:00]} 1... e5 {[%clk 0:01:00]} 2. Bc4 {[%clk 0:00:59]} 2... Nc6 {[%clk 0:00:59.6]} 3. Qf3 {[%clk 0:00:58.2]} 3... Nf6 {[%clk 0:00:58.9]} 4. Ne2 {[%clk 0:00:57.5]} 4... d5 {[%clk 0:00:57.1]} 5. exd5 {[%clk 0:00:56.5]} 5... Na5 {[%clk 0:00:56.9]} 6. Na3 {[%clk 0:00:55]} 6... e4 {[%clk 0:00:55.3]} 7. Qc3 {[%clk 0:00:51.6]} 7... Bxa3 {[%clk 0:00:54.7]} 8. Qxa3 {[%clk 0:00:50.2]} 8... Nxc4 {[%clk 0:00:53.7]} 9. Qa4+ {[%clk 0:00:48.4]} 9... Bd7 {[%clk 0:00:47.9]} 10. Qxc4 {[%clk 0:00:47.4]} 10... O-O {[%clk 0:00:47.7]} 11. d6 {[%clk 0:00:45.9]} 11... cxd6 {[%clk 0:00:46.6]} 12. Nf4 {[%clk 0:00:44]} 12... d5 {[%clk 0:00:46.2]} 13. Qe2 {[%clk 0:00:40.5]} 13... Rc8 {[%clk 0:00:44.8]} 14. O-O {[%clk 0:00:39]} 14... Rxc2 {[%clk 0:00:42.4]} 15. a4 {[%clk 0:00:37]} 15... a5 {[%clk 0:00:38.5]} 16. b3 {[%clk 0:00:35]} 16... d4 {[%clk 0:00:31]} 17. Ba3 {[%clk 0:00:33.8]} 17... d3 {[%clk 0:00:28.9]} 18. Nxd3 {[%clk 0:00:31.7]} 18... Bf5 {[%clk 0:00:24.6]} 19. Bxf8 {[%clk 0:00:30]} 19... exd3 {[%clk 0:00:20.2]} 20. Qd1 {[%clk 0:00:26.7]} 20... Kxf8 {[%clk 0:00:18.9]} 21. Rc1 {[%clk 0:00:25.2]} 21... Qc8 {[%clk 0:00:16.2]} 22. Rxc2 {[%clk 0:00:24.4]} 22... dxc2 {[%clk 0:00:15.8]} 23. Qc1 {[%clk 0:00:23.7]} 23... Bd3 {[%clk 0:00:15]} 24. Re1 {[%clk 0:00:22.6]} 24... Qf5 {[%clk 0:00:14.6]} 25. Re3 {[%clk 0:00:21.6]} 25... Nd5 {[%clk 0:00:12.7]} 26. Rf3 {[%clk 0:00:19.4]} 26... Qe4 {[%clk 0:00:11.2]} 27. g3 {[%clk 0:00:17.4]} 27... Qe2 {[%clk 0:00:10.3]} 28. Rxf7+ {[%clk 0:00:12.1]} 28... Kxf7 {[%clk 0:00:08.8]} 29. Kg2 {[%clk 0:00:11.4]} 29... Qd1 {[%clk 0:00:06.8]} 30. Qxd1 {[%clk 0:00:10]} 30... cxd1=Q {[%clk 0:00:05.5]} 31. h3 {[%clk 0:00:08.8]} 31... Be4+ {[%clk 0:00:05.1]} 32. f3 {[%clk 0:00:07.1]} 32... Qxf3+ {[%clk 0:00:04]} 33. Kh2 {[%clk 0:00:05.2]} 33... Qg2# {[%clk 0:00:03.7]} 0-1